Workbook

Sheet BDI
A4: DETALHAMENTO DO BDI - SEM DESONERAÇÃO
A5: EXECUÇÃO DE CAPA ASFÁLTICA EM CONCRETO BETUMINOSO USINADO A QUENTE (CBUQ) E PAVIMENTAÇÃO EM BLOCO DE CONCRETO INTERTRAVADO EM VIAS DE MUNICÍPIOS DIVERSOS INSERIDOS NA ÁREA DE ATUAÇÃO DA CODEVASF, NO ESTADO DE SERGIPE
A6: Descrição dos serviços | B6: Preço de Venda (%) | C6: Custo Direto (%)
A7: ADMINISTRAÇÃO CENTRAL | C7: 0.06
A8: CUSTOS FINANCEIROS | B8: 0.0079
A9: RISCOS | B9: 0.005
A10: SEGUROS E GARANTIAS CONTRATUAIS | B10: 0.0025
A11: LUCRO OPERACIONAL | C11: 0.07
A12: PIS | B12: 0.0065
A13: COFINS | B13: 0.03
A14: ISSQN | B14: 0.03
A15: Contribuição Previdenciaria | B15: 0
B16: BDI | C16: =ROUND(((1+(C7+C11))/(1-(B8+B9+B10+B12+B13+B14+B15))-1),4) -> 0.2308
A17: Observação: | B17: O percentual de ISSQN aqui utilizado consiste apenas em um referencial médio.
B18: O valor real do ISSQN a ser adotado deve ser aquele proveniente das alíquotas dos municípios situados na área de influência das obras.
A54: DETALHAMENTO DO BDI DIFERENCIADO - SEM DESONERAÇÃO
A55: EXECUÇÃO DE CAPA ASFÁLTICA EM CONCRETO BETUMINOSO USINADO A QUENTE (CBUQ) E PAVIMENTAÇÃO EM BLOCO DE CONCRETO INTERTRAVADO EM VIAS DE MUNICÍPIOS DIVERSOS INSERIDOS NA ÁREA DE ATUAÇÃO DA CODEVASF, NO ESTADO DE SERGIPE
A56: DESCRIÇÃO DOS SERVIÇOS | B56: PREÇO DE VENDA (%) | C56: CUSTO DIRETO (%)
A57: ADMINISTRAÇÃO CENTRAL | C57: 0.0377
A58: DESPESA FINANCEIRAS | B58: 0.0102
A59: SEGUROS E GARANTIAS CONTRATUAIS | B59: 0.0025
A60: RISCOS | B60: 0.005
A61: LUCRO OPERACIONAL | C61: 0.05
A62: PIS | B62: 0.0065
A63: COFINS | B63: 0.03
A64: ISSQN | B64: 0
A65: Contribuição Previdenciaria | B65: 0
B66: BDI DIFERENCIADO | C66: =ROUND((1+(C57+C61))/(1-(B58+B59+B60+B62+B63+B64+B65))-1,4) -> 0.15
A67: Fonte da composição, valores de referência e fórmula do BDI: Instrução Normativa N° 62/DNIT SEDE

Sheet ENC. SOCIAIS
A5: EXECUÇÃO DE CAPA ASFÁLTICA EM CONCRETO BETUMINOSO USINADO A QUENTE (CBUQ) E PAVIMENTAÇÃO EM BLOCO DE CONCRETO INTERTRAVADO EM VIAS DE MUNICÍPIOS DIVERSOS INSERIDOS NA ÁREA DE ATUAÇÃO DA CODEVASF, NO ESTADO DE SERGIPE
A7: DETALHAMENTO DOS ENCARGOS SOCIAIS (%)
A8: VIGÊNCIA A PARTIR DE 12/2023 | C8: COM DESONERAÇÃO | E8: SEM DESONERAÇÃO
C10: HORISTA | D10: MENSALISTA | E10: HORISTA | F10: MENSALISTA
A12: GRUPO A
A13: A1 | B13: INSS | C13: 0 | D13: 0 | E13: 20 | F13: 20
A14: A2 | B14: SESI | C14: 1.5 | D14: 1.5 | E14: 1.5 | F14: 1.5
A15: A3 | B15: SENAI | C15: 1 | D15: 1 | E15: 1 | F15: 1
A16: A4 | B16: INCRA | C16: 0.2 | D16: 0.2 | E16: 0.2 | F16: 0.2
A17: A5 | B17: SEBRAE | C17: 0.6 | D17: 0.6 | E17: 0.6 | F17: 0.6
A18: A6 | B18: Salário Educação | C18: 2.5 | D18: 2.5 | E18: 2.5 | F18: 2.5
A19: A7 | B19: Seguro Contra Acidentes de Trabalho | C19: 3 | D19: 3 | E19: 3 | F19: 3
A20: A8 | B20: FGTS | C20: 8 | D20: 8 | E20: 8 | F20: 8
A21: A9 | B21: SECONCI | C21: 1 | D21: 1 | E21: 0 | F21: -
A22: A | B22: Total | C22: =SUM(C13:C21) -> 17.8 | D22: =SUM(D13:D21) -> 17.8 | E22: =SUM(E13:E21) -> 36.8 | F22: =SUM(F13:F21) -> 36.8
A23: GRUPO B
A24: B1 | B24: Repouso Semanal Remunerado | C24: 17.88 | D24: - | E24: 17.87 | F24: -
A25: B2 | B25: Feriados | C25: 3.94 | D25: - | E25: 3.93 | F25: -
A26: B3 | B26: Auxílio-enfermidade | C26: 0.91 | D26: 0.69 | E26: 0.85 | F26: 0.64
A27: B4 | B27: 13° salário | C27: 10.98 | D27: 8.33 | E27: 10.98 | F27: 8.33
A28: B5 | B28: Licença-paternidade | C28: 0.07 | D28: 0.06 | E28: 0.06 | F28: 0.04
A29: B6 | B29: Faltas Justificadas | C29: 0.73 | D29: 0.56 | E29: 0.73 | F29: 0.56
A30: B7 | B30: Dias de chuva | C30: 1.45 | D30: - | E30: 1.51 | F30: -
A31: B8 | B31: Auxílio Acidente de Trabalho | C31: 0.11 | D31: 0.09 | E31: 0.1 | F31: 0.08
A32: B9 | B32: Férias Gozadas | C32: 11.35 | D32: 8.62 | E32: 11.37 | F32: 8.64
A33: B10 | B33: Salário Maternidade | C33: 0.03 | D33: 0.03 | E33: 0.04 | F33: 0.03
A34: B | B34: Total | C34: =SUM(C24:C33) -> 47.45 | D34: =SUM(D24:D33) -> 18.38 | E34: =SUM(E24:E33) -> 47.44 | F34: =SUM(F24:F33) -> 18.32
A35: GRUPO C
A36: C1 | B36: Aviso Prévio Indenizado | C36: 6.76 | D36: 5.14 | E36: 4.83 | F36: 3.67
A37: C2 | B37: Aviso Prévio Trabalhado | C37: 0.16 | D37: 0.12 | E37: 0.11 | F37: 0.09
A38: C3 | B38: Férias Indenizadas | C38: 2.28 | D38: 1.73 | E38: 2.35 | F38: 1.79
A39: C4 | B39: Depósito Rescisão Sem Justa Causa | C39: 3.81 | D39: 2.89 | E39: 2.71 | F39: 2.06
A40: C5 | B40: Indenização Adicional | C40: 0.57 | D40: 0.43 | E40: 0.41 | F40: 0.31
A41: C | B41: Total | C41: =SUM(C36:C40) -> 13.58 | D41: =SUM(D36:D40) -> 10.31 | E41: =SUM(E36:E40) -> 10.41 | F41: =SUM(F36:F40) -> 7.92
A42: GRUPO D
A43: D1 | B43: Reincidência de A sobre B | C43: 8.45 | D43: 3.27 | E43: 17.46 | F43: 6.74
A44: D2 | B44: Reincidência de Grupo A sobre Aviso Prévio Trabalhado e Reincidência do FGTS sobre Aviso Prévio Indenizado | C44: 0.57 | D44: 0.43 | E44: 0.43 | F44: 0.33
A45: D | B45: Total | C45: =SUM(C43:C44) -> 9.02 | D45: =SUM(D43:D44) -> 3.7 | E45: =SUM(E43:E44) -> 17.89 | F45: =SUM(F43:F44) -> 7.07
A47: T O T A L (%) | C47: =C22+C34+C41+C45 -> 87.85 | D47: =D22+D34+D41+D45 -> 50.19 | E47: =E22+E34+E41+E45 -> 112.54 | F47: =F22+F34+F41+F45 -> 70.11

Sheet BDI EM BRANCO
A2: OBRA:
A3: LOCAL:
A4: DATA BASE:
A5: DETALHAMENTO DO BDI
A7: DESCRIÇÃO DOS SERVIÇOS | B7: PREÇO DE VENDA (%) | C7: CUSTO DIRETO (%)
A8: ADMINISTRAÇÃO CENTRAL
A9: DESPESA FINANCEIRAS
A10: SEGUROS E GARANTIAS CONTRATUAIS
A11: RISCOS
A12: LUCRO OPERACIONAL
A13: PIS
A14: COFINS
A15: ISSQN
A16: Contribuição Previdenciaria
B17: BDI
A21: DETALHAMENTO DO BDI DIFERENCIADO
A24: DESCRIÇÃO DOS SERVIÇOS | B24: PREÇO DE VENDA (%) | C24: CUSTO DIRETO (%)
A25: ADMINISTRAÇÃO CENTRAL
A26: DESPESA FINANCEIRAS
A27: SEGUROS E GARANTIAS CONTRATUAIS
A28: RISCOS
A29: LUCRO OPERACIONAL
A30: PIS
A31: COFINS
A32: ISSQN
A33: Contribuição Previdenciaria
B34: BDI

Sheet ENC. SOCIAIS EM BRANCO
A6: NOME DA CONCORRENTE:
A7: EDITAL:
A8: FOLHA:
A11: DETALHAMENTO DOS ENCARGOS SOCIAIS (%)
A12: VIGÊNCIA A PARTIR DE 12/2022 | C12: COM DESONERAÇÃO | E12: SEM DESONERAÇÃO
C14: HORISTA | D14: MENSALISTA | E14: HORISTA | F14: MENSALISTA
A16: GRUPO A
A17: A1 | B17: INSS | C17: 0 | D17: 0
A18: A2 | B18: SESI | C18: 1.5 | D18: 1.5
A19: A3 | B19: SENAI | C19: 1 | D19: 1
A20: A4 | B20: INCRA | C20: 0.2 | D20: 0.2
A21: A5 | B21: SEBRAE | C21: 0.6 | D21: 0.6
A22: A6 | B22: Salário Educação | C22: 2.5 | D22: 2.5
A23: A7 | B23: Seguro Contra Acidentes de Trabalho | C23: 3 | D23: 3
A24: A8 | B24: FGTS | C24: 8 | D24: 8
A25: A9 | B25: SECONCI | C25: 1 | D25: 1
A26: A | B26: Total | C26: 17.8 | D26: 17.8
A27: GRUPO B
A28: B1 | B28: Repouso Semanal Remunerado | C28: 17.88 | D28: -
A29: B2 | B29: Feriados | C29: 3.94 | D29: -
A30: B3 | B30: Auxílio-enfermidade | C30: 0.91 | D30: 0.69
A31: B4 | B31: 13° salário | C31: 10.98 | D31: 8.33
A32: B5 | B32: Licença-paternidade | C32: 0.07 | D32: 0.06
A33: B6 | B33: Faltas Justificadas | C33: 0.73 | D33: 0.56
A34: B7 | B34: Dias de chuva | C34: 1.45 | D34: -
A35: B8 | B35: Auxílio Acidente de Trabalho | C35: 0.11 | D35: 0.09
A36: B9 | B36: Férias Gozadas | C36: 11.35 | D36: 8.62
A37: B10 | B37: Salário Maternidade | C37: 0.03 | D37: 0.03
A38: B | B38: Total | C38: 47.45 | D38: 18.38
A39: GRUPO C
A40: C1 | B40: Aviso Prévio Indenizado | C40: 6.76 | D40: 5.14
A41: C2 | B41: Aviso Prévio Trabalhado | C41: 0.16 | D41: 0.12
A42: C3 | B42: Férias Indenizadas | C42: 2.28 | D42: 1.73
A43: C4 | B43: Depósito Rescisão Sem Justa Causa | C43: 3.81 | D43: 2.89
A44: C5 | B44: Indenização Adicional | C44: 0.57 | D44: 0.43
A45: C | B45: Total | C45: 13.58 | D45: 10.31
A46: GRUPO D
A47: D1 | B47: Reincidência de A sobre B | C47: 8.45 | D47: 3.27
A48: D2 | B48: Reincidência de Grupo A sobre Aviso Prévio Trabalhado e Reincidência do FGTS sobre Aviso Prévio Indenizado | C48: 0.57 | D48: 0.43
A49: D | B49: Total | C49: 9.02 | D49: 3.7
A51: T O T A L (%) | C51: 87.85 | D51: 50.19
